bitfinex/quotes_ETHUSD_20230103
["timestamp","ask_amount","ask_price","bid_price","bid_amount"]
[1672753607157,4.925,1218.0,1217.9,31.11207175]
[1672753607367,10.01903307,1218.0,1217.9,31.11207175]
[1672753607698,15.01903307,1218.0,1217.9,31.11207175]
[1672753609980,15.01903307,1218.0,1217.9,21.25905175]
[1672753610399,15.01903307,1218.0,1217.9,31.11207175]
[1672753611343,16.58917638,1218.0,1217.9,31.11207175]
[1672753612923,16.58917638,1218.0,1217.9,31.10858273]
[1672753615041,15.01903307,1218.0,1217.9,21.25556273]
[1672753615347,15.01903307,1218.0,1217.9,31.10858273]
[1672753616880,15.01903307,1218.0,1217.9,29.65785037]
[1672753618036,10.01903307,1218.0,1217.9,29.65785037]
[1672753618377,4.925,1218.0,1217.9,29.65785037]
[1672753619050,9.925,1218.0,1217.9,29.65785037]
[1672753619428,14.23703949,1218.0,1217.9,29.65785037]
[1672753619907,14.23703949,1218.0,1217.9,31.30595901]
[1672753625006,9.23703949,1218.0,1217.9,31.30595901]
[1672753625999,14.23703949,1218.0,1217.9,31.30595901]
[1672753631222,9.925,1218.0,1217.9,31.30595901]
[1672753632095,4.925,1218.0,1217.9,31.30595901]
[1672753632420,4.925,1218.0,1217.9,21.45293901]
[1672753633087,9.925,1218.0,1217.9,21.45293901]
[1672753634014,9.925,1218.0,1217.9,31.30595901]
[1672753636093,9.925,1218.0,1217.9,31.30250515]
[1672753637234,15.01903307,1218.0,1217.9,31.30250515]
[1672753637445,9.925,1218.0,1217.9,31.30250515]
[1672753637714,15.01903307,1218.0,1217.9,21.44948515]
[1672753638940,10.01903307,1218.0,1217.9,21.44948515]
[1672753640227,15.01903307,1218.0,1217.9,21.44948515]
[1672753641187,15.01903307,1218.0,1217.9,31.30250515]
[1672753642438,15.01903307,1218.0,1217.9,11.59646515]
[1672753642608,15.01903307,1218.0,1217.9,21.44948515]
[1672753642824,15.01903307,1218.0,1217.9,31.30250515]
[1672753646227,10.01903307,1218.0,1217.9,31.30250515]
[1672753647029,15.01903307,1218.0,1217.9,31.30250515]
[1672753652585,9.925,1218.0,1217.9,31.30250515]
[1672753653005,15.01903307,1218.0,1217.9,31.30250515]
[1672753653276,9.925,1218.0,1217.9,31.30250515]
[1672753653428,15.01903307,1218.0,1217.9,31.30250515]
[1672753654261,9.925,1218.0,1217.9,31.30250515]
[1672753655950,14.23938328,1218.0,1217.9,31.30250515]
[1672753656538,14.23938328,1218.0,1217.9,31.29906454]
[1672753660106,9.23938328,1218.0,1217.9,31.29906454]
[1672753660998,14.23938328,1218.0,1217.9,31.29906454]
[1672753663175,14.23938328,1218.0,1217.9,33.31306454]
[1672753663488,14.23938328,1218.0,1217.9,38.79872162]
[1672753664532,14.23938328,1218.0,1217.9,39.29252365]
[1672753668007,9.31438328,1218.0,1217.9,39.29252365]
[1672753670700,4.31438328,1218.0,1217.9,39.29252365]
[1672753670911,4.31438328,1218.0,1217.9,33.80686657]
[1672753671122,9.31438328,1218.0,1217.9,33.80686657]
[1672753679472,9.31438328,1218.0,1217.9,33.80454146]
[1672753681670,9.31438328,1218.0,1217.9,37.9534026]
[1672753681861,5.0,1218.0,1217.9,37.9534026]
[1672753682070,8.69578022,1218.0,1217.9,43.90309348]
[1672753682281,5.0,1218.0,1217.9,43.90309348]
[1672753683674,9.31438328,1218.0,1217.9,43.90309348]
[1672753687877,9.31638328,1218.0,1217.9,43.90009348]
[1672753688030,9.31438328,1218.0,1217.9,43.90309348]
[1672753688502,4.31438328,1218.0,1217.9,43.90309348]
[1672753689431,9.31438328,1218.0,1217.9,43.90309348]
[1672753695327,9.31054159,1218.0,1217.9,43.90309348]
[1672753696486,4.31054159,1218.0,1217.9,43.90309348]
[1672753697217,10.70143307,1218.1,1217.9,43.90309348]
[1672753697218,4.991,1218.1,1217.9,43.90309348]
[1672753697428,4.925,1218.1,1217.9,43.90309348]
[1672753700471,4.31378641,1218.0,1217.9,43.90309348]
[1672753716072,0.066,1218.1,1217.9,52.9826139]
[1672753716456,4.31378641,1218.2,1218.0,23.79038156]
[1672753716599,4.39372528,1218.3,1218.1,54.66671372]
[1672753716973,4.32772528,1218.3,1218.2,33.70063114]
[1672753717161,4.32772528,1218.3,1218.2,37.85242151]
[1672753717373,4.32772528,1218.3,1218.2,43.11660569]
[1672753720581,0.01393887,1218.3,1218.2,43.11660569]
[1672753720766,0.01393887,1218.3,1218.2,42.62280366]
[1672753721071,4.32772528,1218.3,1218.2,42.62280366]
[1672753721952,0.01393887,1218.3,1218.2,42.62280366]
[1672753722508,3.70494313,1218.3,1218.2,42.62280366]
[1672753726533,3.70494313,1218.3,1218.2,38.47394252]
[1672753726691,4.32772528,1218.3,1218.2,31.67256037]
[1672753730076,4.32772528,1218.3,1218.2,29.65056037]
[1672753731893,4.32772528,1218.3,1218.2,19.79997037]
[1672753732612,4.32772528,1218.3,1218.2,29.65056037]
[1672753732836,4.32772528,1218.3,1218.2,19.79997037]
[1672753733259,4.32772528,1218.3,1218.2,29.65056037]
[1672753734185,4.32772528,1218.3,1218.2,19.79997037]
[1672753735912,4.32772528,1218.3,1218.2,29.65056037]
[1672753736271,4.32772528,1218.3,1218.2,30.64305802]
[1672753738398,4.32772528,1218.3,1218.2,30.64005332]
[1672753738728,4.32772528,1218.3,1218.2,29.64755567]
[1672753741056,4.93893887,1218.3,1218.2,9.94637567]
[1672753741269,9.24392181,1218.3,1218.2,19.79696567]
[1672753743207,9.24392181,1218.3,1218.2,29.64755567]
[1672753743626,9.24392181,1218.3,1218.2,19.79696567]
[1672753744046,9.24392181,1218.3,1218.2,29.64755567]
[1672753744310,9.24392181,1218.3,1218.2,19.79696567]
[1672753745142,9.24392181,1218.3,1218.2,29.64755567]
[1672753745570,9.24392181,1218.3,1218.2,19.79696567]
[1672753746000,9.24392181,1218.3,1218.2,29.64755567]
[1672753752593,4.93893887,1218.3,1218.2,29.64755567]
[1672753754153,4.93893887,1218.3,1218.2,19.79696567]
[1672753754533,10.03297194,1218.3,1218.2,19.79696567]
[1672753756284,10.03297194,1218.3,1218.2,29.64755567]
[1672753758318,10.03297194,1218.3,1218.2,19.79696567]
[1672753758683,10.03297194,1218.3,1218.2,19.79435186]
[1672753759847,10.03297194,1218.3,1218.2,29.64494186]
[1672753765131,10.03297194,1218.3,1218.2,19.79435186]
[1672753766195,10.03297194,1218.3,1218.2,29.64494186]
[1672753767465,10.03038986,1218.3,1218.2,29.64494186]
[1672753773400,4.93635679,1218.3,1218.2,29.64494186]
[1672753773619,10.03038986,1218.3,1218.2,29.64494186]
[1672753776565,15.03038986,1218.3,1218.2,29.64494186]
[1672753778447,9.93635679,1218.3,1218.2,29.64494186]
[1672753779282,14.24958054,1218.3,1218.2,29.64494186]
[1672753780088,14.24958054,1218.3,1218.2,31.66494186]
[1672753780303,14.24958054,1218.3,1218.2,32.6942002]
[1672753780927,9.24958054,1218.3,1218.2,32.6942002]
[1672753781667,14.24958054,1218.3,1218.2,32.6942002]
[1672753784338,14.24958054,1218.3,1218.2,0.09879037]
[1672753784339,9.93635679,1218.3,1218.2,0.09879037]
[1672753784607,9.93635679,1218.3,1218.1,19.7017]
[1672753784608,9.93635679,1218.3,1218.1,29.65146037]
[1672753784753,5.09538887,1218.2,1218.1,19.80032037]
[1672753784967,4.31343348,1218.2,1218.1,19.80032037]
[1672753785289,4.31343348,1218.2,1218.1,29.65172037]
[1672753785708,15.09774566,1218.3,1218.1,29.65172037]
[1672753785933,15.03174566,1218.3,1218.1,29.65172037]
[1672753786299,4.31302077,1218.2,1218.1,29.65172037]
[1672753786440,4.31302077,1218.2,1218.1,34.9396261]
[1672753789861,4.31302077,1218.2,1218.1,34.93719699]
[1672753790257,4.31302077,1218.2,1218.1,29.64929126]
[1672753792793,19.41076643,1218.3,1218.1,29.64929126]
[1672753792957,3.69625389,1218.2,1218.1,31.68029126]
[1672753796683,9.31537756,1218.3,1218.1,31.68029126]
[1672753796858,3.69590275,1218.2,1218.1,31.68029126]
[1672753797056,3.69590275,1218.2,1218.1,37.17105408]
[1672753797919,9.31537756,1218.3,1218.1,37.17105408]
[1672753798135,9.24937756,1218.3,1218.1,31.68029126]
[1672753798554,3.6959267,1218.2,1218.1,31.68029126]
[1672753799406,3.69593789,1218.2,1218.1,31.68029126]
[1672753799619,3.69596624,1218.2,1218.1,31.68029126]
[1672753799788,9.31537756,1218.3,1218.1,31.68029126]
[1672753800004,9.24937756,1218.3,1218.1,31.68029126]
[1672753800213,3.69588107,1218.2,1218.1,31.68029126]
[1672753800461,9.31537756,1218.3,1218.1,31.68029126]
[1672753800785,3.69588103,1218.2,1218.1,31.68029126]
[1672753800941,9.31537756,1218.3,1218.1,37.17105408]
[1672753801154,4.31302077,1218.2,1218.1,31.68029126]
[1672753801615,4.31302077,1218.2,1218.1,9.94398126]
[1672753801616,9.24002077,1218.2,1218.1,9.94398126]
[1672753801778,9.23802077,1218.2,1218.1,19.79838126]
[1672753801993,9.23802077,1218.2,1218.1,29.64978126]
[1672753801994,4.925,1218.2,1218.1,29.64978126]
[1672753802205,9.23720811,1218.2,1218.1,29.64978126]
[1672753803195,4.925,1218.2,1218.1,29.64978126]
[1672753803529,9.23672246,1218.2,1218.1,29.64978126]
[1672753804051,14.23672246,1218.2,1218.1,29.64978126]
[1672753810021,9.23672246,1218.2,1218.1,29.64978126]
[1672753810470,9.23672246,1218.2,1218.1,19.79838126]
[1672753810686,9.23672246,1218.2,1218.1,29.64978126]
[1672753810874,14.23672246,1218.2,1218.1,19.79838126]
[1672753811429,11.92757681,1218.2,1218.1,19.79838126]
[1672753811583,16.23804865,1218.2,1218.1,19.79838126]
[1672753812051,11.92757681,1218.2,1218.1,19.79838126]
[1672753812254,16.23790781,1218.2,1218.1,19.79838126]
[1672753812743,11.92957681,1218.2,1218.1,19.79538126]
[1672753812957,16.23786165,1218.2,1218.1,19.79838126]
[1672753813200,16.23786165,1218.2,1218.1,19.79558988]
[1672753813413,16.23786165,1218.2,1218.1,29.64698988]
[1672753815738,14.23528484,1218.2,1218.1,29.64698988]
[1672753816327,9.23528484,1218.2,1218.1,29.64698988]
[1672753816692,4.925,1218.2,1218.1,29.64698988]
[1672753817055,8.6189624,1218.2,1218.1,29.64698988]
[1672753817273,4.925,1218.2,1218.1,29.64698988]
[1672753818416,8.61899679,1218.2,1218.1,29.64698988]
[1672753818773,8.61898764,1218.2,1218.1,29.64698988]
[1672753819428,8.61907377,1218.2,1218.1,29.64698988]
[1672753820049,8.61907377,1218.2,1218.1,31.66698988]
[1672753821153,4.925,1218.2,1218.1,31.66698988]
[1672753822786,8.61937159,1218.2,1218.1,31.66698988]
[1672753822938,4.925,1218.2,1218.1,31.66698988]
[1672753824298,8.6195422,1218.2,1218.1,31.66698988]
[1672753824575,8.61953293,1218.2,1218.1,31.66698988]
[1672753825752,4.925,1218.2,1218.1,31.66698988]
[1672753826066,8.61947953,1218.2,1218.1,31.66698988]
[1672753828523,3.69447953,1218.2,1218.1,31.66698988]
[1672753828742,3.69447953,1218.2,1218.1,37.15642256]
[1672753828945,3.69434039,1218.2,1218.1,31.66698988]
[1672753829319,4.31028484,1218.2,1218.1,31.66698988]
[1672753830275,9.31264163,1218.3,1218.1,31.66698988]
[1672753830420,9.24664163,1218.3,1218.1,31.66698988]
[1672753831381,4.31028484,1218.2,1218.1,31.66698988]
[1672753835626,4.31028484,1218.2,1218.1,31.66403204]
[1672753839788,4.31228484,1218.2,1218.1,31.66103204]
[1672753840023,4.31028484,1218.2,1218.1,31.66403204]
[1672753843166,9.31264163,1218.3,1218.1,31.66403204]
[1672753843380,9.24664163,1218.3,1218.1,31.66403204]
[1672753844137,4.31028484,1218.2,1218.1,31.66403204]
[1672753845557,5.00235679,1218.3,1218.1,31.66403204]
[1672753845558,9.31264163,1218.3,1218.1,31.66403204]
[1672753845763,3.69556836,1218.2,1218.1,31.66403204]
[1672753845976,9.31264163,1218.3,1218.1,31.66403204]
[1672753846189,9.24664163,1218.3,1218.1,31.66403204]
[1672753847021,3.69556255,1218.2,1218.1,31.66403204]
[1672753847232,9.31264163,1218.3,1218.1,31.66403204]
[1672753847438,9.24664163,1218.3,1218.1,31.66403204]
[1672753847701,3.69558684,1218.2,1218.1,31.66403204]
[1672753847951,9.31264163,1218.3,1218.1,31.66403204]
[1672753848082,9.24664163,1218.3,1218.1,31.66403204]
[1672753848300,3.69558688,1218.2,1218.1,31.66403204]
[1672753850433,3.69558688,1218.2,1218.1,37.15316894]
[1672753850848,3.69558688,1218.2,1218.1,41.30203008]
[1672753851063,5.00235679,1218.3,1218.2,6.5]
[1672753851280,9.93635679,1218.3,1218.2,36.15056037]
[1672753852125,14.24664163,1218.3,1218.2,36.15056037]
[1672753852330,9.24664163,1218.3,1218.2,36.15056037]
[1672753854383,4.93635679,1218.3,1218.2,36.15056037]
[1672753854610,9.24664163,1218.3,1218.2,36.15056037]
[1672753858701,9.24664163,1218.3,1218.2,36.14851087]
[1672753865618,9.54382043,1218.3,1218.2,36.14851087]
[1672753873934,5.23353559,1218.3,1218.2,36.14851087]
[1672753875198,8.92831864,1218.3,1218.2,36.14851087]
[1672753876159,8.92815483,1218.3,1218.2,36.14851087]
[1672753876366,5.23353559,1218.3,1218.2,36.14851087]
[1672753876578,8.92844526,1218.3,1218.2,36.14851087]
[1672753876937,5.23353559,1218.3,1218.2,36.14851087]
[1672753877301,0.30853559,1218.3,1218.2,36.14851087]
[1672753877674,4.61882043,1218.3,1218.2,36.14851087]
[1672753878050,0.30853559,1218.3,1218.2,36.14851087]
[1672753878487,0.31053559,1218.3,1218.2,36.14551087]
[1672753878687,0.31053559,1218.3,1218.2,36.14851087]
[1672753878688,0.30853559,1218.3,1218.2,36.14851087]
[1672753879049,0.30853559,1218.3,1218.2,36.14591304]
[1672753879415,4.61882043,1218.3,1218.2,36.14591304]
[1672753881409,0.30853559,1218.3,1218.2,36.14591304]
[1672753883530,4.61882043,1218.3,1218.2,36.14591304]
[1672753890608,4.61882043,1218.3,1218.2,36.63971507]
[1672753895540,0.30853559,1218.3,1218.2,40.78857621]
[1672753895773,4.00474919,1218.3,1218.2,46.054678]
[1672753900083,4.00474919,1218.3,1218.2,49.86132079]
[1672753903615,4.00474919,1218.3,1218.2,49.8589824]
[1672753905084,4.00109896,1218.3,1218.2,49.8589824]
[1672753905312,4.00109896,1218.3,1218.2,51.8859824]
[1672753909925,4.00109896,1218.3,1218.2,49.8599824]
[1672753914235,0.30488536,1218.3,1218.2,49.8599824]
[1672753916409,0.30488536,1218.3,1218.2,58.94023498]
[1672753916718,0.0045433,1218.4,1218.2,58.94023498]
[1672753916934,0.0045433,1218.4,1218.3,42.22123114]
[1672753917250,0.0045433,1218.4,1218.3,50.62394511]
[1672753917473,0.0185527,1218.5,1218.4,6.5]
[1672753917609,0.59770484,1218.5,1218.4,26.87190409]
[1672753917820,0.06400311,1218.6,1218.5,39.39268]
[1672753918028,3.69409304,1218.7,1218.5,61.25245395]
[1672753918273,4.55683585,1218.8,1218.6,8.20886114]
[1672753918464,4.49283274,1218.8,1218.7,6.15986114]
[1672753918675,4.49283274,1218.8,1218.7,36.29210354]
[1672753919115,0.7987397,1218.8,1218.7,48.37422598]
[1672753919303,0.06400311,1218.9,1218.8,6.5]
[1672753919551,1.0,1219.0,1218.9,6.5]
[1672753919712,0.066,1219.1,1218.9,21.83207005]
[1672753919919,0.6158,1219.2,1219.0,47.57838114]
[1672753920132,4.30989304,1219.2,1219.1,2.03]
[1672753920339,4.30989304,1219.2,1219.1,19.68664]
[1672753920340,3.69409304,1219.2,1219.1,19.68664]
[1672753920611,5.13809117,1219.3,1219.1,0.09879037]
[1672753920760,4.925,1219.1,1218.8,9.94453037]
[1672753920970,3.68075172,1218.9,1218.8,0.09879037]
[1672753921235,8.60575172,1218.9,1218.7,0.09879037]
[1672753921410,8.60575172,1218.9,1218.6,10.79646611]
[1672753921411,8.60575172,1218.9,1218.6,9.94559037]
[1672753921632,8.60575172,1218.8,1218.6,9.94566037]
[1672753921868,3.68075172,1218.7,1218.6,0.09879037]
[1672753922081,3.68075172,1218.7,1218.5,11.97623037]
[1672753922256,3.68075172,1218.7,1218.5,16.12509151]
[1672753922458,3.68075172,1218.7,1218.5,25.97326151]
[1672753923034,8.67175172,1218.8,1218.5,26.46706354]
[1672753923247,8.60575172,1218.8,1218.5,30.30160789]
[1672753923547,3.68075172,1218.7,1218.5,30.30160789]
[1672753923760,3.68075172,1218.7,1218.5,40.14977789]
[1672753925389,8.67175172,1218.8,1218.5,40.14977789]
[1672753925604,8.60575172,1218.8,1218.5,40.14977789]
[1672753925799,8.60575172,1218.8,1218.6,2.023]
[1672753926016,8.60575172,1218.8,1218.6,21.71672]
[1672753926223,8.60575172,1218.8,1218.6,22.3093124]
[1672753926482,8.60575172,1218.8,1218.6,32.1566724]
[1672753927134,8.60575172,1218.8,1218.6,22.3093124]
[1672753929714,8.60575172,1218.8,1218.6,32.1566724]
[1672753930914,3.68075172,1218.7,1218.6,22.3093124]
[1672753931077,3.68075172,1218.7,1218.6,2.6155924]
[1672753931437,3.68075172,1218.7,1218.6,22.21081203]
[1672753931650,3.68075172,1218.7,1218.6,22.3096024]
[1672753933854,8.60575172,1218.7,1218.6,0.09879037]
[1672753934039,8.60575172,1218.7,1218.3,21.6450045]
[1672753934040,39.50364473,1218.7,1218.3,21.6450045]
[1672753934248,8.60575172,1218.6,1218.3,26.28766767]
[1672753934463,3.68075172,1218.5,1218.3,16.43861767]
[1672753934632,3.68075172,1218.5,1218.3,10.06408972]
[1672753934873,18.45392172,1218.5,1218.3,0.1017545]
[1672753935084,18.45392172,1218.5,1218.3,0.00296413]
[1672753935353,9.22195172,1218.5,1218.3,0.00296413]
[1672753935827,8.60575172,1218.4,1218.3,0.00296413]
[1672753936726,28.30371172,1218.4,1218.3,0.00296413]
[1672753936892,30.10126593,1218.4,1218.3,0.00296413]
[1672753937209,20.25228593,1218.4,1218.3,0.00296413]
[1672753937665,30.10126593,1218.4,1218.3,0.00296413]
[1672753937811,20.25228593,1218.4,1218.3,0.00296413]
[1672753940657,30.10126593,1218.4,1218.3,0.00296413]
[1672753940866,20.25228593,1218.4,1218.3,0.00296413]
[1672753941394,8.60575172,1218.4,1218.3,0.00296413]
[1672753942336,4.925,1218.4,1218.3,29.55233413]
[1672753942547,4.925,1218.4,1218.3,29.6511245]
[1672753943544,9.28795172,1218.5,1218.3,33.79998564]
[1672753943771,8.60575172,1218.5,1218.3,35.82630402]
[1672753944655,8.60575172,1218.5,1218.3,33.79630402]
[1672753947836,8.60575172,1218.5,1218.3,38.5495079]
[1672753950715,8.60575172,1218.5,1218.3,0.09879037]
[1672753950897,18.45392172,1218.5,1218.2,11.72937316]
[1672753951104,8.60575172,1218.5,1218.3,19.69926]
[1672753951291,8.60575172,1218.5,1218.3,19.79805037]
[1672753952183,8.60575172,1218.4,1218.3,9.94826037]
[1672753954031,4.925,1218.4,1218.3,9.94826037]
[1672753954451,8.60575172,1218.4,1218.3,9.94826037]
[1672753955501,4.925,1218.4,1218.3,9.94826037]
[1672753955924,4.925,1218.4,1218.3,19.79805037]
[1672753956215,4.925,1218.4,1218.3,29.64784037]
[1672753956344,4.925,1218.4,1218.3,19.79805037]
[1672753956873,4.925,1218.4,1218.3,9.94826037]
[1672753958022,4.925,1218.4,1218.3,19.79805037]
[1672753958513,4.925,1218.4,1218.3,9.94826037]
[1672753959834,8.60575172,1218.4,1218.3,9.94826037]
[1672753962058,8.60575172,1218.4,1218.3,19.79805037]
[1672753963441,3.68075172,1218.4,1218.3,34.1905898]
[1672753964245,3.68075172,1218.4,1218.3,38.33945094]
[1672753964457,3.68075172,1218.4,1218.3,38.3357999]
[1672753969760,3.68075172,1218.4,1218.3,40.3647999]
[1672753970345,4.29467842,1218.4,1218.3,40.3647999]
[1672753970554,4.29467842,1218.4,1218.3,30.5150099]
[1672753971612,4.29467842,1218.4,1218.3,20.6652199]
[1672753971816,4.29467842,1218.4,1218.3,16.12247047]
[1672753972501,4.29467842,1218.4,1218.3,11.97360933]
[1672753972713,9.99709117,1218.4,1218.3,0.09879037]
[1672753972927,9.99709117,1218.4,1218.2,33.45909316]
[1672753973263,4.31074337,1218.3,1218.2,37.6079543]
[1672753973712,4.31074337,1218.3,1218.2,37.6089543]
[1672753973924,4.31074337,1218.3,1218.2,33.46009316]
[1672753977635,4.31074337,1218.3,1218.2,13.75946316]
[1672753978407,4.31074337,1218.3,1218.2,23.61005316]
[1672753978564,9.31074337,1218.3,1218.2,23.61005316]
[1672753983859,9.31074337,1218.3,1218.2,33.46064316]
[1672753984417,4.31074337,1218.3,1218.2,33.46064316]
[1672753985297,4.31074337,1218.3,1218.2,33.45832789]
[1672753992408,9.31074337,1218.3,1218.2,33.45832789]
[1672753993412,9.31074337,1218.3,1218.2,23.60773789]
[1672753997097,9.31074337,1218.3,1218.2,24.45236668]
[1672753997308,9.31074337,1218.3,1218.2,34.30295668]
[1672753998265,4.31074337,1218.3,1218.2,34.30295668]
[1672753999239,4.31074337,1218.3,1218.2,33.45832789]
[1672753999914,4.31074337,1218.3,1218.2,23.60773789]
[1672754000265,4.31074337,1218.3,1218.2,13.75714789]
[1672754000666,9.23574337,1218.3,1218.2,13.75714789]
[1672754000885,9.23574337,1218.3,1218.2,11.72714789]
[1672754001087,14.23574337,1218.3,1218.2,11.72714789]
[1672754001754,14.23574337,1218.3,1218.2,21.57773789]
[1672754002596,9.925,1218.3,1218.2,21.57773789]
[1672754004489,14.23500074,1218.3,1218.2,21.57773789]
[1672754004713,9.925,1218.3,1218.2,21.57773789]
[1672754004851,14.99709117,1218.3,1218.2,21.57773789]
[1672754005062,9.925,1218.3,1218.2,21.57773789]
[1672754005388,14.2354421,1218.3,1218.2,21.57773789]
[1672754005595,14.99709117,1218.3,1218.2,21.57773789]
[1672754005807,11.49292912,1218.3,1218.2,1.87711789]
[1672754006072,47.76513495,1218.3,1218.2,1.77832752]
[1672754006292,61.16893655,1218.3,1218.2,1.77832752]
[1672754006467,55.05475641,1218.3,1218.2,1.77832752]
[1672754007432,4.925,1218.1,1218.0,0.00296413]
[1672754007649,36.70490156,1218.1,1218.0,0.00296413]
[1672754007794,26.85350156,1218.1,1218.0,0.00296413]
[1672754009535,31.6167,1218.1,1218.0,0.00296413]
[1672754009901,41.4681,1218.1,1218.0,0.00296413]
[1672754010107,46.54867551,1218.1,1218.0,0.00296413]
[1672754011090,46.49867551,1218.1,1218.0,0.00296413]
[1672754011468,53.70280301,1218.1,1217.9,0.00791192]
[1672754011686,11.375,1217.9,1217.8,0.00462621]
[1672754011909,25.4775019,1217.9,1217.8,0.00462621]
[1672754012234,55.02973362,1217.9,1217.8,0.00462621]
[1672754012443,67.74663362,1217.9,1217.8,0.00462621]
[1672754012698,29.74555442,1217.9,1217.8,0.00462621]
[1672754013364,29.74755442,1217.9,1217.8,0.00462621]
[1672754013628,29.74555442,1217.9,1217.8,0.00462621]
[1672754014381,29.13046862,1217.9,1217.8,0.00462621]
[1672754015628,28.90046862,1217.9,1217.8,19.71228621]
[1672754015796,28.90046862,1217.9,1217.8,19.81107658]
[1672754016011,16.18356862,1217.9,1217.8,19.81107658]
[1672754016422,16.18356862,1217.9,1217.8,9.95724658]
[1672754018252,16.18356862,1217.9,1217.8,0.10341658]
[1672754018477,16.18356862,1217.9,1217.8,0.00462621]
[1672754019676,9.875,1217.9,1217.8,19.71228621]
[1672754019885,9.875,1217.9,1217.8,31.69390658]
[1672754020098,5.0,1217.9,1217.8,34.21770861]
[1672754020511,5.0,1217.9,1217.8,38.36656975]
[1672754020771,0.066,1218.0,1217.8,51.14851599]
[1672754020958,12.5447,1218.1,1218.0,6.5]
[1672754021174,4.991,1218.2,1218.0,40.21142037]
[1672754021354,4.925,1218.2,1218.1,2.03]
[1672754021776,4.925,1218.2,1218.1,11.8814]
[1672754021950,4.925,1218.2,1218.1,11.98019037]
[1672754022289,8.6037714,1218.2,1218.1,0.09879037]
[1672754022413,8.6037714,1218.2,1218.0,2.12879037]
[1672754022788,8.6037714,1218.2,1218.0,8.53]
[1672754023112,8.6037714,1218.2,1218.0,18.48091037]
[1672754023415,8.6037714,1218.2,1218.0,28.33312037]
[1672754023591,9.925,1218.1,1218.0,28.33312037]
[1672754023990,9.925,1218.1,1218.0,43.40405052]
[1672754025067,4.991,1218.2,1218.0,43.40405052]
[1672754025260,4.925,1218.2,1218.0,43.40405052]
[1672754030058,4.925,1218.2,1218.1,31.5842]
[1672754030224,9.925,1218.2,1218.1,31.68299037]
[1672754030438,9.925,1218.2,1218.1,37.21137342]
[1672754031217,13.6037714,1218.2,1218.1,37.21137342]
[1672754031528,9.925,1218.2,1218.1,37.21137342]
[1672754031888,13.6037714,1218.2,1218.1,37.21137342]
[1672754032093,13.6037714,1218.2,1218.1,37.16137342]
[1672754033943,9.925,1218.2,1218.1,37.16137342]
[1672754034540,13.6037714,1218.2,1218.1,37.16137342]
[1672754034952,8.6037714,1218.2,1218.1,37.16137342]
[1672754035810,4.925,1218.2,1218.1,37.16137342]
[1672754036017,9.925,1218.2,1218.1,37.16137342]
[1672754036300,9.925,1218.2,1218.1,31.63299037]
[1672754038053,13.6037714,1218.2,1218.1,31.63299037]
[1672754038510,9.925,1218.2,1218.1,31.63299037]
[1672754038930,13.6037714,1218.2,1218.1,31.63299037]
[1672754040640,13.6037714,1218.2,1218.1,11.93019037]
[1672754041229,13.6037714,1218.2,1218.1,2.07879037]
[1672754041364,13.6037714,1218.2,1218.1,1.98]
[1672754042001,23.4543614,1218.2,1218.0,18.48091037]
[1672754042208,13.6037714,1218.2,1218.0,18.48091037]
[1672754042413,13.6037714,1218.2,1218.0,28.33312037]
[1672754045276,3.6787714,1218.1,1218.0,28.33312037]
[1672754045491,8.6787714,1218.1,1218.0,28.33312037]
[1672754046113,8.6787714,1218.1,1218.0,18.48091037]
[1672754046114,13.6037714,1218.1,1218.0,18.48091037]
[1672754046641,13.6037714,1218.1,1218.0,8.62879037]
[1672754046849,13.6037714,1218.1,1218.0,2.12879037]
[1672754047082,13.6037714,1218.1,1218.0,11.88221]
[1672754047273,13.6037714,1218.1,1218.0,21.83321037]
[1672754049362,9.925,1218.1,1218.0,21.83321037]
[1672754049673,9.925,1218.1,1218.0,31.68542037]
[1672754049880,9.925,1218.1,1218.0,29.65542037]
[1672754051951,9.925,1218.1,1218.0,33.85848761]
[1672754052336,13.6037714,1218.1,1218.0,33.85848761]
[1672754055909,13.6037714,1218.1,1218.0,33.85505994]
[1672754056121,13.6037714,1218.1,1218.0,35.88505994]
[1672754056333,8.6037714,1218.1,1218.0,35.88505994]
[1672754061043,8.6037714,1218.1,1218.0,37.10075947]
[1672754061727,9.2188572,1218.1,1218.0,37.10075947]
[1672754062047,4.925,1218.1,1218.0,37.10075947]
[1672754067618,8.62106098,1218.1,1218.0,37.10075947]
[1672754067794,4.925,1218.1,1218.0,37.10075947]
[1672754069790,9.2188572,1218.1,1218.0,37.10075947]
[1672754072195,9.2188572,1218.1,1218.0,23.04548223]
[1672754073147,14.2188572,1218.1,1218.0,23.04548223]
[1672754073794,14.2188572,1218.1,1218.0,32.89769223]
[1672754079256,14.2188572,1218.1,1218.0,32.89533381]
[1672754085134,9.2188572,1218.1,1218.0,32.89533381]
[1672754086122,14.2188572,1218.1,1218.0,32.89533381]
[1672754092115,9.2188572,1218.1,1218.0,32.89533381]
[1672754093249,14.2188572,1218.1,1218.0,32.89533381]
[1672754099065,9.2188572,1218.1,1218.0,32.89533381]
[1672754100136,14.2188572,1218.1,1218.0,32.89533381]
[1672754102905,14.23814741,1218.1,1218.0,32.89533381]
[1672754103413,14.23814741,1218.1,1218.0,32.89178746]
[1672754104107,9.23814741,1218.1,1218.0,32.89178746]
[1672754106390,9.23814741,1218.1,1218.0,36.58965327]
[1672754107006,4.37914741,1218.2,1218.0,49.69414385]
[1672754107200,4.31314741,1218.2,1218.1,2.03]
[1672754107383,9.31314741,1218.2,1218.1,2.03]
[1672754107600,9.31314741,1218.2,1218.1,32.86162146]
[1672754107789,9.31314741,1218.2,1218.1,32.96041183]
[1672754108206,4.31314741,1218.2,1218.1,32.96041183]
[1672754109590,22.01094741,1218.3,1218.1,32.96041183]
[1672754109802,4.92944741,1218.3,1218.2,31.58177]
[1672754110010,5.6163,1218.3,1218.2,49.47621271]
[1672754110219,5.0,1218.3,1218.2,42.54824581]
[1672754110620,4.39171134,1218.4,1218.2,42.54824581]
[1672754110748,4.32571134,1218.4,1218.3,2.03]
[1672754110938,4.32571134,1218.4,1218.3,35.83419458]
[1672754111153,9.32571134,1218.4,1218.3,35.93298495]
[1672754111798,9.32571134,1218.4,1218.3,40.08184609]
[1672754115117,4.32571134,1218.4,1218.3,40.08184609]
[1672754115687,0.01256393,1218.4,1218.3,40.08184609]
[1672754117645,3.70082986,1218.4,1218.3,40.08184609]
[1672754122436,3.70082986,1218.4,1218.3,31.67816037]
[1672754122652,40.86265134,1218.4,1218.3,0.09879037]
[1672754122862,26.70052393,1218.4,1218.2,9.53989037]
[1672754123065,30.86848077,1218.4,1218.2,9.53989037]
[1672754123276,11.17052077,1218.4,1218.2,19.39048037]
[1672754123542,21.01957077,1218.4,1218.2,9.53989037]
[1672754124470,9.22695684,1218.3,1218.2,0.09879037]
[1672754124658,9.99701526,1218.3,1218.0,1.3144899]
[1672754124874,3.68792619,1218.1,1218.0,1.21569953]
[1672754125313,8.61292619,1218.1,1218.0,1.21569953]